{"text_format":"1","workbook":"xlsx","n_sheets":3,"sheets":["Step Down - 1st 6 mo","Step Down - Mo's 4-9","Consequences"],"not_rendered":{"charts":0,"images":1,"macros":1,"external_links":0,"defined_names":4,"comments":3,"pivot_tables":0},"unopened":[],"bounds":{"document_bytes":16777216,"sheet_cells":100000,"rows_first":2000,"rows_last":500,"rows_between":2000,"halvings":0,"cell_chars":16384,"cell_head_chars":4096},"cells_cut":0,"cells_raw":0,"read":"whole","date_system":"1900"}

{"sheet":"Step Down - 1st 6 mo","index":0,"n_rows":61,"n_cols":57,"rows_kept":61,"cut":false,"hidden":false,"merged":[[1,46,2,48],[3,42,3,44],[4,43,6,45],[4,46,6,48],[4,40,6,42],[1,45,2,45],[49,25,50,48],[56,25,57,48],[40,10,40,48],[41,10,41,48],[42,10,42,48],[43,10,43,48],[44,10,44,48],[45,10,45,48],[46,10,46,48],[53,25,54,30],[21,53,21,56],[3,46,3,48],[18,46,19,48],[12,43,13,45],[15,43,16,45],[18,43,19,45],[5,52,5,53],[6,52,6,53],[4,52,4,53],[15,46,16,48],[12,46,13,48],[31,31,32,36],[31,37,32,42],[1,28,2,30],[1,31,2,37],[1,39,2,41],[17,37,18,39],[12,28,13,30],[14,40,15,42],[13,31,14,33],[16,31,17,33],[15,28,16,30],[1,42,2,44],[31,8,32,12],[29,1,29,7],[31,1,32,7],[26,13,26,18],[24,10,25,12],[13,16,14,18],[13,13,14,15],[24,16,25,18],[24,13,25,15],[26,8,26,12],[24,8,25,9],[23,13,23,18],[18,13,20,18],[11,40,12,42],[11,37,12,39],[12,25,13,27],[15,25,16,27],[17,40,18,42],[10,31,11,33],[4,34,6,36],[4,37,6,39],[4,25,6,27],[4,28,6,30],[4,31,6,33],[9,28,10,30],[11,19,12,21],[11,22,12,24],[7,1,8,7],[7,8,8,12],[9,8,9,12],[10,13,11,15],[14,22,15,24],[16,34,17,36],[10,34,11,36],[9,1,9,7],[10,16,11,18],[8,19,9,21],[15,1,15,7],[15,8,15,12],[7,13,8,15],[7,16,8,18],[12,8,12,12],[18,8,20,12],[23,1,23,7],[27,1,28,7],[24,1,25,7],[27,13,28,18],[27,8,28,12],[13,1,14,7],[13,8,14,12],[18,1,20,7],[21,1,22,7],[23,8,23,12],[21,13,22,18],[1,7,2,9],[1,11,2,16],[1,1,2,6],[4,13,6,15],[4,1,6,7],[4,16,6,18],[1,17,2,26],[4,19,6,21],[4,22,6,24],[4,8,6,12],[9,25,10,27],[60,7,61,23],[10,1,11,7],[58,1,59,6],[60,1,61,6],[40,1,47,9],[12,1,12,7],[21,8,22,12],[10,8,11,12],[51,7,52,23],[60,25,61,30],[51,25,52,30],[37,19,38,24],[49,1,50,23],[47,10,47,48],[60,31,61,48],[58,31,59,48],[51,1,52,6],[56,1,57,23],[53,1,54,6],[26,1,26,7],[29,8,29,12],[8,22,9,24],[14,19,15,21],[31,19,32,24],[34,43,36,48],[58,7,59,23],[14,37,15,39],[13,34,14,36],[37,13,38,18],[37,31,38,36],[53,31,54,48],[51,31,52,48],[58,25,59,30],[31,43,32,48],[53,7,54,23],[34,19,36,24],[31,25,32,30],[37,43,38,48],[34,13,36,18],[34,31,36,36],[37,37,38,42],[37,25,38,30],[34,25,36,30],[34,37,36,42],[31,13,32,18],[34,1,38,12],[29,13,29,18]]}
[]
[null,"Supplier Duns # ",null,null,null,null,null,null,null,null,null,"Supplier Name ",null,null,null,null,null,null,null,null,null,null,null,null,null,null,null,null,"Location:",null,null,null,null,null,null,null,null,null,null,"Date:"]
[]
[null,null,null,null,null,null,null,null,null,null,null,null,null,null,null,null,null,null,null,null,null,null,null,null,null,null,null,null,null,null,null,null,null,null,null,null,null,null,null,null,null,null,"CREATED",null,null,null,"REVISED",null,null,null,null,null,null,"TARGETS"]
[null,"Metric",null,null,null,null,null,null,"Start Month Status",null,null,null,null,"Actual",null,null,"Target",null,null,"Actual",null,null,"Target",null,null,"Actual",null,null,"Target",null,null,"Actual",null,null,"Target",null,null,"Actual",null,null,"Target",null,null,"Actual",null,null,"Target",null,null,null,null,null,"CTBL Score",null,"≥",79,"Red"]
[null,null,null,null,null,null,null,null,null,null,null,null,null,null,null,null,null,null,null,null,null,null,null,null,null,null,null,null,null,null,null,null,null,null,null,null,null,null,null,null,null,null,null,null,null,null,null,null,null,null,null,null,"PPM Y",null,"Mx",31]
[null,null,null,null,null,null,null,null,null,null,null,null,null,null,null,null,null,null,null,null,null,null,null,null,null,null,null,null,null,null,null,null,null,null,null,null,null,null,null,null,null,null,null,null,null,null,null,null,null,null,null,null,"PPM G",null,"≤",30]
[null,"PPM",null,null,null,null,null,null,"",null,null,null,null,"#NA"]
[null,null,null,null,null,null,null,null,null,null,null,null,null,null,null,null,null,null,null,"#NA"]
[null,"(per month)",null,null,null,null,null,null,"(12 month)",null,null,null,null,null,null,null,null,null,null,null,null,null,null,null,null,"#na"]
[null,"PRR",null,null,null,null,null,null,"",null,null,null,null,"#NA",null,null,null,null,null,null,null,null,null,null,null,null,null,null,null,null,null,"#NA"]
[null,null,null,null,null,null,null,null,null,null,null,null,null,null,null,null,null,null,null,"#NA",null,null,null,null,null,null,null,null,null,null,null,null,null,null,null,null,null,"#NA"]
[null,"(per month)",null,null,null,null,null,null,"(6 mo. average)",null,null,null,null,null,null,null,null,null,null,null,null,null,null,null,null,"#NA",null,null,null,null,null,null,null,null,null,null,null,null,null,null,null,null,null,"#NA"]
[null,"Major Disruption",null,null,null,null,null,null,"",null,null,null,null,null,null,null,0,null,null,null,null,null,null,null,null,null,null,null,null,null,null,"#NA"]
[null,null,null,null,null,null,null,null,null,null,null,null,null,null,null,null,null,null,null,null,null,null,0,null,null,null,null,null,null,null,null,null,null,null,null,null,null,"#NA"]
[null,null,null,null,null,null,null,null,"(6 mo. prior Total)",null,null,null,null,null,null,null,null,null,null,null,null,null,null,null,null,null,null,null,0,null,null,null,null,null,null,null,null,null,null,null,null,null,null,"#NA"]
[null,null,null,null,null,null,null,null,null,null,null,null,null,null,null,null,null,null,null,null,null,null,null,null,null,null,null,null,null,null,null,null,null,null,0]
[null,null,null,null,null,null,null,null,null,null,null,null,null,null,null,null,null,null,null,null,null,null,null,null,null,null,null,null,null,null,null,null,null,null,null,null,null,null,null,null,0]
[null,"Metric",null,null,null,null,null,null,"Start Month Status",null,null,null,null,"Current Month Status",null,null,null,null,null,null,null,null,null,null,null,null,null,null,null,null,null,null,null,null,null,null,null,null,null,null,null,null,null,null,null,null,0]
[]
[]
[null,"PPM",null,null,null,null,null,null,"",null,null,null,null,""]
[]
[null,"12mo Rolling"]
[null," CS1 / CS2"]
[]
[null,"(number of open)"]
[null,"CTBL Score"]
[]
[null,"(monthly)"]
[]
[null,"Month",null,null,null,null,null,null,"00:00:00",null,null,null,null,"00:00:00",null,null,null,null,null,"00:00:00",null,null,null,null,null,"00:00:00",null,null,null,null,null,"00:00:00",null,null,null,null,null,"00:00:00",null,null,null,null,null,"00:00:00"]
[]
[]
[null,"Next Step if\nTargets are not Met",null,null,null,null,null,null,null,null,null,null,null,"None",null,null,null,null,null,"Supplier Initiated Containment",null,null,null,null,null,"CS 1 on All Affected Parts",null,null,null,null,null,"CS 2 on All Affected Parts",null,null,null,null,null,"CS 2 on All Affected Parts",null,null,null,null,null,"Recommend NBH for Specified Duns"]
[]
[]
[null,null,null,null,null,null,null,null,null,null,null,null,null,null,null,null,null,null,null,null,null,null,null,null,null,"SPM",null,null,null,null,null,"Notify Registrar",null,null,null,null,null,"Creativity Team Review",null,null,null,null,null,"Engage Registrar"]
[null,null,null,null,null,null,null,null,null,null,null,null,null,1,null,null,null,null,null,2,null,null,null,null,null,3,null,null,null,null,null,4,null,null,null,null,null,5,null,null,null,null,null,6]
[]
[null,"General Comments"]
[]
[]
[]
[]
[]
[]
[]
[]
[null,"ATI Single Point SQE",null,null,null,null,null,null,null,null,null,null,null,null,null,null,null,null,null,null,null,null,null,null,null,"ATI Creativity Team Leader"]
[]
[null,"Name ",null,null,null,null,null,null,null,null,null,null,null,null,null,null,null,null,null,null,null,null,null,null,null,"Name "]
[]
[null,"Phone Number ",null,null,null,null,null,null,null,null,null,null,null,null,null,null,null,null,null,null,null,null,null,null,null,"Phone Number "]
[]
[]
[null,"ATI Executive Champion",null,null,null,null,null,null,null,null,null,null,null,null,null,null,null,null,null,null,null,null,null,null,null,"Supplier Contact"]
[]
[null,"Name ",null,null,null,null,null,null,null,null,null,null,null,null,null,null,null,null,null,null,null,null,null,null,null,"Name "]
[]
[null,"Phone Number ",null,null,null,null,null,null,null,null,null,null,null,null,null,null,null,null,null,null,null,null,null,null,null,"Phone Number "]

{"sheet":"Step Down - Mo's 4-9","index":1,"n_rows":61,"n_cols":57,"rows_kept":61,"cut":false,"hidden":false,"merged":[[34,19,36,24],[31,25,32,30],[37,43,38,48],[34,13,36,18],[34,31,36,36],[37,37,38,42],[37,25,38,30],[34,25,36,30],[34,37,36,42],[34,43,36,48],[37,13,38,18],[37,31,38,36],[31,43,32,48],[31,19,32,24],[1,1,2,6],[4,13,6,15],[4,1,6,7],[4,16,6,18],[1,17,2,26],[4,19,6,21],[10,16,11,18],[8,19,9,21],[4,22,6,24],[9,25,10,27],[1,7,2,9],[1,11,2,16],[10,1,11,7],[10,8,11,12],[60,25,61,30],[51,25,52,30],[37,19,38,24],[49,1,50,23],[47,10,47,48],[60,31,61,48],[58,31,59,48],[51,1,52,6],[56,1,57,23],[53,1,54,6],[60,7,61,23],[58,1,59,6],[60,1,61,6],[40,1,47,9],[51,7,52,23],[53,7,54,23],[58,7,59,23],[53,31,54,48],[51,31,52,48],[58,25,59,30],[7,8,8,12],[9,8,9,12],[26,1,26,7],[29,8,29,12],[7,13,8,15],[7,16,8,18],[12,8,12,12],[18,8,20,12],[23,1,23,7],[27,1,28,7],[24,1,25,7],[27,13,28,18],[12,1,12,7],[21,8,22,12],[15,1,15,7],[15,8,15,12],[4,34,6,36],[4,37,6,39],[4,25,6,27],[4,28,6,30],[4,31,6,33],[9,1,9,7],[4,8,6,12],[10,13,11,15],[14,22,15,24],[10,34,11,36],[11,37,12,39],[12,25,13,27],[15,25,16,27],[10,31,11,33],[9,28,10,30],[13,1,14,7],[13,8,14,12],[8,22,9,24],[14,19,15,21],[11,19,12,21],[11,22,12,24],[7,1,8,7],[18,1,20,7],[21,1,22,7],[23,8,23,12],[21,13,22,18],[31,13,32,18],[34,1,38,12],[29,13,29,18],[31,8,32,12],[29,1,29,7],[31,1,32,7],[27,8,28,12],[26,13,26,18],[24,10,25,12],[13,16,14,18],[13,13,14,15],[24,16,25,18],[24,13,25,15],[26,8,26,12],[24,8,25,9],[23,13,23,18],[18,13,20,18],[31,31,32,36],[31,37,32,42],[1,28,2,30],[1,31,2,37],[1,39,2,41],[17,37,18,39],[12,28,13,30],[14,40,15,42],[13,31,14,33],[16,31,17,33],[16,34,17,36],[11,40,12,42],[17,40,18,42],[14,37,15,39],[13,34,14,36],[21,53,21,56],[3,46,3,48],[18,46,19,48],[12,43,13,45],[15,43,16,45],[18,43,19,45],[5,52,5,53],[6,52,6,53],[4,52,4,53],[15,28,16,30],[15,46,16,48],[12,46,13,48],[1,42,2,44],[1,46,2,48],[3,42,3,44],[4,43,6,45],[4,46,6,48],[4,40,6,42],[1,45,2,45],[49,25,50,48],[56,25,57,48],[40,10,40,48],[41,10,41,48],[42,10,42,48],[43,10,43,48],[44,10,44,48],[45,10,45,48],[46,10,46,48],[53,25,54,30]]}
[]
[null,"Supplier Duns # ",null,null,null,null,null,{"$f":"'Step Down - 1st 6 mo'!H2:J3","v":0},null,null,null,"Supplier Name ",null,null,null,null,null,{"$f":"'Step Down - 1st 6 mo'!R2","v":0},null,null,null,null,null,null,null,null,null,null,"Location:",null,null,{"$f":"'Step Down - 1st 6 mo'!AF2","v":0},null,null,null,null,null,null,null,"Date:",null,null,{"$f":"'Step Down - 1st 6 mo'!AQ2","v":"00:00:00"}]
[]
[null,null,null,null,null,null,null,null,null,null,null,null,null,null,null,null,null,null,null,null,null,null,null,null,null,null,null,null,null,null,null,null,null,null,null,null,null,null,null,null,null,null,"CREATED",null,null,null,"REVISED",null,null,null,null,null,null,"TARGETS"]
[null,"Metric",null,null,null,null,null,null,"Start Month Status",null,null,null,null,"Actual",null,null,"Target",null,null,"Actual",null,null,"Target",null,null,"Actual",null,null,"Target",null,null,"Actual",null,null,"Target",null,null,"Actual",null,null,"Target",null,null,"Actual",null,null,"Target",null,null,null,null,null,"CTBL Score",null,"≥",79,"Red"]
[null,null,null,null,null,null,null,null,null,null,null,null,null,null,null,null,null,null,null,null,null,null,null,null,null,null,null,null,null,null,null,null,null,null,null,null,null,null,null,null,null,null,null,null,null,null,null,null,null,null,null,null,"PPM Y",null,"Mx",31]
[null,null,null,null,null,null,null,null,null,null,null,null,null,null,null,null,null,null,null,null,null,null,null,null,null,null,null,null,null,null,null,null,null,null,null,null,null,null,null,null,null,null,null,null,null,null,null,null,null,null,null,null,"PPM G",null,"≤",30]
[null,"PPM",null,null,null,null,null,null,{"$f":"'Step Down - 1st 6 mo'!I8","v":""},null,null,null,null,{"$f":"'Step Down - 1st 6 mo'!AF11","v":"#NA"},null,null,{"$f":"'Step Down - 1st 6 mo'!AI11","v":0}]
[null,null,null,null,null,null,null,null,null,null,null,null,null,null,null,null,null,null,null,{"$f":"'Step Down - 1st 6 mo'!AL12","v":"#NA"},null,null,{"$f":"'Step Down - 1st 6 mo'!AO12","v":0}]
[null,"(per month)",null,null,null,null,null,null,"(12 month)",null,null,null,null,null,null,null,null,null,null,null,null,null,null,null,null,{"$f":"'Step Down - 1st 6 mo'!AR13","v":"#NA"},null,null,{"$f":"'Step Down - 1st 6 mo'!AU13","v":0}]
[null,"PRR",null,null,null,null,null,null,{"$f":"'Step Down - 1st 6 mo'!I11","v":""},null,null,null,null,{"$f":"'Step Down - 1st 6 mo'!AF14","v":"#NA"},null,null,{"$f":"'Step Down - 1st 6 mo'!AI14","v":0},null,null,null,null,null,null,null,null,null,null,null,null,null,null,"#NA"]
[null,null,null,null,null,null,null,null,null,null,null,null,null,null,null,null,null,null,null,{"$f":"'Step Down - 1st 6 mo'!AL15","v":"#NA"},null,null,{"$f":"'Step Down - 1st 6 mo'!AO15","v":0},null,null,null,null,null,null,null,null,null,null,null,null,null,null,"#NA"]
[null,"(per month)",null,null,null,null,null,null,"(6 mo. average)",null,null,null,null,null,null,null,null,null,null,null,null,null,null,null,null,{"$f":"'Step Down - 1st 6 mo'!AR16","v":"#NA"},null,null,{"$f":"'Step Down - 1st 6 mo'!AU16","v":0},null,null,null,null,null,null,null,null,null,null,null,null,null,null,"#NA"]
[null,"Major Disruption",null,null,null,null,null,null,{"$f":"'Step Down - 1st 6 mo'!I14","v":""},null,null,null,null,{"$f":"'Step Down - 1st 6 mo'!AF17","v":0},null,null,{"$f":"'Step Down - 1st 6 mo'!AI17","v":0},null,null,null,null,null,null,null,null,null,null,null,null,null,null,"#NA"]
[null,null,null,null,null,null,null,null,null,null,null,null,null,null,null,null,null,null,null,{"$f":"'Step Down - 1st 6 mo'!AL18","v":0},null,null,{"$f":"'Step Down - 1st 6 mo'!AO18","v":0},null,null,null,null,null,null,null,null,null,null,null,null,null,null,"#NA"]
[null,null,null,null,null,null,null,null,"(6 mo. prior Total)",null,null,null,null,null,null,null,null,null,null,null,null,null,null,null,null,{"$f":"'Step Down - 1st 6 mo'!AR19","v":0},null,null,{"$f":"'Step Down - 1st 6 mo'!AU19","v":0},null,null,null,null,null,null,null,null,null,null,null,null,null,null,"#NA"]
[null,null,null,null,null,null,null,null,null,null,null,null,null,null,null,null,null,null,null,null,null,null,null,null,null,null,null,null,null,null,null,null,null,null,0]
[null,null,null,null,null,null,null,null,null,null,null,null,null,null,null,null,null,null,null,null,null,null,null,null,null,null,null,null,null,null,null,null,null,null,null,null,null,null,null,null,0]
[null,"Metric",null,null,null,null,null,null,"Start Month Status",null,null,null,null,"Current Month Status",null,null,null,null,null,null,null,null,null,null,null,null,null,null,null,null,null,null,null,null,null,null,null,null,null,null,null,null,null,null,null,null,0]
[]
[]
[null,"PPM",null,null,null,null,null,null,{"$f":"'Step Down - 1st 6 mo'!I22","v":""},null,null,null,null,""]
[]
[null,"12mo Rolling"]
[null," CS1 / CS2",null,null,null,null,null,null,{"$f":"'Step Down - 1st 6 mo'!I25","v":0},null,{"$f":"'Step Down - 1st 6 mo'!K25","v":0}]
[]
[null,"(number of open)"]
[null,"CTBL Score",null,null,null,null,null,null,{"$f":"'Step Down - 1st 6 mo'!I28","v":0}]
[]
[null,"(monthly)"]
[]
[null,"Month",null,null,null,null,null,null,{"$f":"'Step Down - 1st 6 mo'!I32","v":"00:00:00"},null,null,null,null,{"$f":"'Step Down - 1st 6 mo'!AF32","v":"00:00:00"},null,null,null,null,null,{"$f":"'Step Down - 1st 6 mo'!AL32","v":"00:00:00"},null,null,null,null,null,{"$f":"'Step Down - 1st 6 mo'!AR32","v":"00:00:00"},null,null,null,null,null,"00:00:00",null,null,null,null,null,"00:00:00",null,null,null,null,null,"00:00:00"]
[]
[]
[null,"Next Step if\nTargets are not Met",null,null,null,null,null,null,null,null,null,null,null,{"$f":"'Step Down - 1st 6 mo'!AF35","v":"CS 2 on All Affected Parts"},null,null,null,null,null,{"$f":"'Step Down - 1st 6 mo'!AL35","v":"CS 2 on All Affected Parts"},null,null,null,null,null,{"$f":"'Step Down - 1st 6 mo'!AR35","v":"Recommend NBH for Specified Duns"}]
[]
[]
[null,null,null,null,null,null,null,null,null,null,null,null,null,{"$f":"'Step Down - 1st 6 mo'!AF38","v":"Notify Registrar"},null,null,null,null,null,{"$f":"'Step Down - 1st 6 mo'!AL38","v":"Creativity Team Review"},null,null,null,null,null,{"$f":"'Step Down - 1st 6 mo'!AR38","v":"Engage Registrar"}]
[null,null,null,null,null,null,null,null,null,null,null,null,null,1,null,null,null,null,null,2,null,null,null,null,null,3,null,null,null,null,null,4,null,null,null,null,null,5,null,null,null,null,null,6]
[]
[null,"General Comments"]
[]
[]
[]
[]
[]
[]
[]
[]
[null,"ATI Single Point SQE",null,null,null,null,null,null,null,null,null,null,null,null,null,null,null,null,null,null,null,null,null,null,null,"ATI Creativity Team Leader"]
[]
[null,"Name ",null,null,null,null,null,null,null,null,null,null,null,null,null,null,null,null,null,null,null,null,null,null,null,"Name "]
[]
[null,"Phone Number ",null,null,null,null,null,null,null,null,null,null,null,null,null,null,null,null,null,null,null,null,null,null,null,"Phone Number "]
[]
[]
[null,"ATI Executive Champion",null,null,null,null,null,null,null,null,null,null,null,null,null,null,null,null,null,null,null,null,null,null,null,"Supplier Contact"]
[]
[null,"Name ",null,null,null,null,null,null,null,null,null,null,null,null,null,null,null,null,null,null,null,null,null,null,null,"Name "]
[]
[null,"Phone Number ",null,null,null,null,null,null,null,null,null,null,null,null,null,null,null,null,null,null,null,null,null,null,null,"Phone Number "]

{"sheet":"Consequences","index":2,"n_rows":13,"n_cols":38,"rows_kept":13,"cut":false,"hidden":true,"merged":[]}
["Column1","List 1",null,null,null,null,null,"List 2"]
[1,"None",null,null,null,null,null,"SPM",null,null,"Supplier Performance Meeting",null,null,null,null,null,null,null,null,"Blank",null,"Y",null,null,null,null,null,null,null,null,null,{"$error":"#REF!"},null,{"$error":"#REF!"},null,{"$error":"#REF!"},null,{"$error":"#REF!"}]
[2,"Supplier Initiated Containment",null,null,null,null,null,"Notify Registrar",null,null,null,null,null,null,null,null,null,null,null,12,null,"G",null,null,null,null,null,null,null,null,null,{"$error":"#REF!"},null,{"$error":"#REF!"},null,{"$error":"#REF!"},null,2]
[3,"CS 1 on All Affected Parts",null,null,null,null,null,"Engage Registrar",null,null,null,null,null,null,null,null,null,null,null,13]
[4,"CS 2 on All Affected Parts",null,null,null,null,null,"Creativity Team Review",null,null,null,null,null,null,null,null,null,null,null,14]
[5,"Implement Layered Audit-Supplier Corp. Leadership",null,null,null,null,null,"SQIM",null,null,"Supplier Quality Improvement Meeting",null,null,null,null,null,null,null,null,15]
[6,"Targets Met. Consequence Shifts \nto the Right ->",null,null,null,null,null,"Recommend Removal - Graduate",null,null,null,null,null,null,null,null,null,null,null,16]
[7,"Implement External Top Focus",null,null,null,null,null,"Continue to Monitor",null,null,null,null,null,null,null,null,null,null,null,17]
[8,"Engage External 3rd Party - Recommend NBH",null,null,null,null,null,null,null,null,null,null,null,null,null,null,null,null,null,18]
[9,"Recommend NBH for Specified Duns",null,null,null,null,null,null,null,null,null,null,null,null,null,null,null,null,null,19]
[10,"Recommend NBH for Entire Commodity",null,null,null,null,null,null,null,null,null,null,null,null,null,null,null,null,null,20]
[11,"Recommend NBH Worldwide",null,null,null,null,null,null,null,null,null,null,null,null,null,null,null,null,null,21]
[12,"Recommend Global Source of All Affected Parts",null,null,null,null,null,null,null,null,null,null,null,null,null,null,null,null,null,22]